[Event "German Bundesliga 2021-22"]
[Site "Germany"]
[Date "2022.04.09"]
[Round "3.3"]
[White "L'Ami, Erwin"]
[Black "Martinovic, Sasa"]
[Result "1/2-1/2"]
[ECO "D36"]
[WhiteElo "2622"]
[BlackElo "2554"]
[Annotator "TA"]
[PlyCount "49"]
[EventDate "2022.03.05"]
[EventType "team-tourn"]
[EventCountry "GER"]
[SourceTitle "playchess.com"]
[Source "ChessBase"]
[SourceQuality "1"]
[TimeControl "40/5400+30:1800+30"]

{[%evp 22,49,8,8,15,10,0,4,8,0,0,0,18,-29,1,0,0,0,0,0,0,0,0,0,0,0,0,0,0,0]} 1. d4 {[%emt 0:00:00]} Nf6 {[%emt 0:00:00]} 2. c4 {[%emt 0:00:00]} e6 {[%emt 0:00:00]} 3. Nc3 {[%emt 0:00:00]} d5 {[%emt 0:00:00]} 4. cxd5 {[%emt 0:00:00]} exd5 {[%emt 0:00:00]} 5. Bg5 {[%emt 0:00:00]} c6 {[%emt 0:00:00]} 6. e3 {[%emt 0:00:00]} Be7 {[%emt 0:00:00]} 7. Bd3 {[%emt 0:00:00]} Nbd7 {[%emt 0:00:00]} 8. h3 {[%emt 0:00:00]} O-O {[%emt 0:00:00]} 9. Qc2 {[%emt 0:00:00]} Re8 {[%emt 0:00:00]} 10. Nf3 {[%emt 0:01:27]} Ne4 {[%emt 0:00:00]} 11. Bf4 {[%emt 0:13:19]} Ndf6 {[%emt 0:00:00]} 12. O-O {[%emt 0:03:05][%cal Rc3e4]} ({Not} 12. Nxe4 $2 dxe4 13. Bxe4 Bb4+ 14. Kf1 Nxe4 $19) 12... Bd6 {[%emt 0:07:30] D36: Queen's Gambit Declined: Exchange Variation: Main line (5 Bg5 c6 6 Qc2).} 13. Ne5 {[%emt 0:06:01]} Nxc3 {[%emt 0:00:25]} 14. bxc3 {[%emt 0:02:11]} c5 {[%emt 0:00:22]} 15. a4 {[%emt 0:20:04]} c4 {[%emt 0:01:32]} 16. Be2 {[%emt 0:00:16] [#]} Qc7 $146 {[%emt 0:08:24]} ({Predecessor:} 16... Qe7 17. Rab1 Ne4 18. f3 f6 19. fxe4 fxe5 20. dxe5 Bxe5 21. exd5 Bxf4 22. Rxf4 Qxe3+ {1-0 (44) Stojanovski,S (2232)-Ambartsumova,K (2382) Chess.com INT 2021}) 17. Rae1 {[%emt 0:05:43]} (17. Bf3 $142) 17... Nd7 {[%emt 0:15:24][%cal Rd7e5] [#]} 18. Nxf7 $1 {[%emt 0:13:04] The position is equal.} Kxf7 {[%emt 0:02:12]} ({Don't play} 18... Bxf4 19. exf4 Qxf4 20. Bh5 $16) 19. Qxh7 {[%emt 0:00:33] And now Bh5+ would win.} Nf6 {[%emt 0:05:04]} 20. Bh5+ {[%emt 0:00:58]} Nxh5 {[%emt 0:07:06]} 21. Qxh5+ {[%emt 0:00:21]} Kf8 {[%emt 0:01:06] White must now prevent ...Be6.} 22. Qh8+ {[%emt 0:00:45]} Kf7 {[%emt 0:00:09]} 23. Qh5+ {[%emt 0:00:08]} Kf8 {[%emt 0:00:30]} 24. Qh8+ {[%emt 0:05:13]} Kf7 {[%emt 0:00:51]} 25. Qh5+ {[%emt 0:00:11] An interesting draw.  Weighted Error Value: White=0.05 (flawless) /Black=0.05 (flawless)} 1/2-1/2

[Event "German Bundesliga 2021-22"]
[Site "Germany"]
[Date "2022.04.09"]
[Round "3.3"]
[White "Salgado Lopez, Ivan"]
[Black "Bruedigam, Martin"]
[Result "0-1"]
[ECO "A19"]
[WhiteElo "2611"]
[BlackElo "2386"]
[Annotator "TA"]
[PlyCount "170"]
[EventDate "2022.03.05"]
[EventType "team-tourn"]
[EventCountry "GER"]
[SourceTitle "playchess.com"]
[Source "ChessBase"]
[SourceQuality "1"]
[TimeControl "40/5400+30:1800+30"]

{[%evp 14,170,27,17,51,43,47,50,49,18,23,29,10,19,21,11,12,13,29,24,23,25,25,23,25,0,0,0,8,0,0,2,10,8,3,1,22,17,25,3,28,18,28,27,39,38,35,18,28,10,3,11,30,20,27,31,41,34,39,31,41,35,24,24,56,36,63,18,27,15,31,31,27,31,43,53,70,56,81,75,117,108,145,146,156,156,159,146,297,290,241,159,144,156,138,41,41,35,40,38,34,34,55,0,0,-8,-8,-8,-8,-8,-8,-8,-8,-8,-24,-59,-57,-190,-178,-361,-356,-535,-514,-534,-534,-2666,-2472,-1194,-1145,-969,-948,-5803,-3733,-29966,-29963,-29959,-29960,-29965,-29967,-29968,-29972,-29970,-29973,-29972,-29974,-29974,-29975,-29974,-29976,-29975,-29971,-29967,-29975,-29983,-29984,-29984,-29985,-29985,-29986]} 1. c4 {[%emt 0:00:00]} Nf6 {[%emt 0:00:00]} 2. Nc3 {[%emt 0:00:00]} e6 {[%emt 0:00:00]} 3. e4 {[%emt 0:00:00][%cal Be2e4,Be4e5][%mdl 32]} c5 {[%emt 0:00:00]} 4. e5 {[%emt 0:00:00]} Ng8 {[%emt 0:00:00]} 5. Nf3 {[%emt 0:00:00][%cal Bg1f3,Bf3d4,Bd4b5][%mdl 32]} Nc6 {[%emt 0:00:00]} 6. d4 {[%emt 0:00:00]} cxd4 {[%emt 0:00:00]} 7. Nxd4 {[%emt 0:00:00]} Nxe5 {[%emt 0:13:43]} 8. Ndb5 {[%emt 0:02:09]} d6 {[%emt 0:25:59] A19: English Opening: Flohr-Mikenas System with 3...c5.} 9. Ne4 {[%emt 0:34:07] is the legacy move (9.c5).} Nf6 {[%emt 0:09:36]} 10. Nexd6+ {[%emt 0:08:21]} Bxd6 {[%emt 0:00:11] [#] White is slightly better.} 11. Nxd6+ $146 {[%emt 0:00:48]} ({Predecessor:} 11. Qxd6 Qxd6 12. Nxd6+ Ke7 13. Nxc8+ Rhxc8 14. b3 Rd8 15. Ba3+ Ke8 16. Rd1 Rxd1+ 17. Kxd1 Rd8+ 18. Kc1 Nd3+ 19. Bxd3 Rxd3 20. Kc2 Rd7 21. Re1 {½-½ (21) Marin Aso,J (1907)-De Paz Nistal,S (1920) Madrid 2020}) 11... Ke7 {[%emt 0:01:22]} 12. Nxc8+ {[%emt 0:02:50]} Rxc8 {[%emt 0:14:19]} 13. Qb3 {[%emt 0:00:29]} Qc7 {[%emt 0:03:58][%cal Re5c4]} 14. Qa3+ {[%emt 0:03:28]} Kd7 {[%emt 0:08:50]} 15. Qxa7 {[%emt 0:22:52]} Nxc4 {[%emt 0:03:18] Active counter play!} 16. Be2 {[%emt 0:03:16]} Qa5+ {[%emt 0:08:34]} (16... Rhd8 {feels hotter.} 17. O-O Ke8 18. Bxc4 Qxc4 19. Qxb7 Nd5) 17. Qxa5 {[%emt 0:00:11]} Nxa5 {[%emt 0:00:04]} 18. Bb5+ {[%emt 0:04:42]} Nc6 {[%emt 0:01:08]} 19. Be3 {[%emt 0:01:02]} Nd5 {[%emt 0:00:23]} 20. O-O-O {[%emt 0:01:03]} Kc7 {[%emt 0:02:10]} 21. Bc5 {[%emt 0:01:20]} b6 {[%emt 0:00:38]} 22. Ba3 {[%emt 0:00:32]} Kb7 {[%emt 0:01:29]} 23. Kb1 {[%emt 0:00:15]} Rhd8 {[%emt 0:00:32]} 24. Rhe1 {[%emt 0:02:24]} Ncb4 {[%emt 0:03:04] ...Nc2 is the strong threat.} 25. Rc1 {[%emt 0:02:11] Inhibits Nc2.} Nc6 {[%emt 0:00:26]} 26. Bf1 {[%emt 0:01:55]} Nf6 {[%emt 0:02:13]} 27. Rc2 {[%emt 0:02:23]} (27. b3 {seems wilder.} Rd2 28. Be2 Rcd8 29. Bf3) 27... Nd4 {[%emt 0:00:31]} 28. Rxc8 {[%emt 0:00:20]} Rxc8 {[%emt 0:00:18]} 29. Rd1 {[%emt 0:03:30]} Nc6 {[%emt 0:00:17]} 30. Be2 {[%emt 0:01:00]} Nd5 {[%emt 0:00:28]} 31. Bd6 {[%emt 0:01:22]} Rd8 {[%emt 0:00:11]} 32. Bg3 {[%emt 0:00:36]} Nce7 {[%emt 0:01:15]} 33. Bf3 {[%emt 0:01:35]} Nf5 {[%emt 0:00:21]} 34. Bf4 {[%emt 0:00:54]} h6 {[%emt 0:01:11]} 35. g3 {[%emt 0:00:37]} Nfe7 {[%emt 0:00:33]} 36. Bc1 {[%emt 0:00:36]} Nc6 {[%emt 0:00:17]} 37. h4 {[%emt 0:00:46]} Ne5 {[%emt 0:00:35]} 38. Be2 {[%emt 0:00:22]} Kc6 {[%emt 0:00:54]} 39. Bd2 {[%emt 0:01:05]} f6 {[%emt 0:00:15]} 40. h5 {[%emt 0:00:46]} Kc7 {[%emt 0:00:20]} 41. Rc1+ {[%emt 0:00:00]} Kb7 {[%emt 0:00:00]} 42. f4 {[%emt 0:00:00]} Nc6 {[%emt 0:00:00]} 43. Rc4 {[%emt 0:02:25]} Nde7 {[%emt 0:00:00]} 44. Be3 {[%emt 0:01:31]} Rd6 {[%emt 0:00:00]} 45. Bf3 {[%emt 0:05:15]} Nd5 {[%emt 0:04:39]} 46. Bf2 {[%emt 0:00:48]} Nce7 {[%emt 0:00:14]} 47. a3 {[%emt 0:01:58]} Rc6 {[%emt 0:01:35]} 48. Rxc6 {[%emt 0:00:28]} Kxc6 $16 {[%emt 0:00:16][%mdl 4096] Endgame KBB-KNN} 49. Kc2 {[%emt 0:00:40]} b5 {[%emt 0:04:37]} 50. Kd3 {[%emt 0:02:11]} e5 $2 {[%emt 0:01:03]} (50... Kd6 $16 51. b3 Nc7) 51. fxe5 $18 {[%emt 0:04:05]} fxe5 {[%emt 0:00:47]} 52. b4 {[%emt 0:00:13] And now Ke4 would win.} Kd6 {[%emt 0:00:41]} 53. Bc5+ {[%emt 0:00:23]} Ke6 {[%emt 0:00:13] [#]} 54. Be2 {[%emt 0:08:30] A strong pair of Bishops.} (54. a4 $1 $16 {[%cal Ra4b5]} bxa4 55. b5) 54... Nf5 $1 $14 {[%emt 0:03:07]} 55. Kc2 {[%emt 0:01:34]} Nc7 {[%emt 0:06:37]} 56. Bg4 {[%emt 0:01:42]} Kf6 {[%emt 0:00:08]} 57. Bf2 {[%emt 0:00:16]} e4 {[%emt 0:01:35]} 58. Bh3 {[%emt 0:01:56]} ({Better is} 58. Kd2 $1 $14) 58... Nd5 $11 {[%emt 0:04:36]} 59. Kd1 {[%emt 0:02:57]} Ke5 {[%emt 0:03:39]} (59... e3 $5 60. Be1 Ke5 $11) 60. Ba7 {[%emt 0:00:07]} Nfe3+ {[%emt 0:01:18]} 61. Ke2 {[%emt 0:00:26]} Nc4 {[%emt 0:00:39] Threatening ...Nf6.} 62. Bb8+ $1 {[%emt 0:00:58]} Kf6 {[%emt 0:00:06]} 63. Ba7 {[%emt 0:00:55]} Nc3+ {[%emt 0:02:06]} 64. Kf2 {[%emt 0:00:43] Strongly threatening Bd4+.} Ke5 {[%emt 0:00:10] Against Bd4+} 65. Bf1 {[%emt 0:01:05]} ({White should play} 65. Bc5 $15) 65... Nxa3 $19 {[%emt 0:02:02]} 66. Bc5 $2 {[%emt 0:00:22] [#]} (66. Ke1 {was worth a try.}) 66... Nc2 $1 {[%emt 0:00:42]} 67. Bf8 {[%emt 0:00:39]} (67. Kg2 {is the only way for White.}) 67... Kf6 {[%emt 0:00:33]} 68. Bc5 {[%emt 0:00:23]} Kg5 {[%emt 0:00:43]} 69. Bf8 {[%emt 0:00:12]} e3+ {[%emt 0:01:17]} 70. Kf3 {[%emt 0:01:06]} e2 $1 {[%emt 0:00:18]} 71. Bxe2 {[%emt 0:00:58]} Nd4+ {[%emt 0:00:06]} 72. Ke3 {[%emt 0:00:54]} Ncxe2 {[%emt 0:02:12]} 73. Bc5 {[%emt 0:00:05]} Nf5+ {[%emt 0:00:51] Black mates.} 74. Kxe2 {[%emt 0:00:05]} Nxg3+ {[%emt 0:00:03] KB-KN} 75. Kd3 {[%emt 0:00:39]} Nxh5 {[%emt 0:00:30]} 76. Be7+ {[%emt 0:00:15]} Kf5 {[%emt 0:00:23]} 77. Kd4 {[%emt 0:00:04]} Nf4 {[%emt 0:00:27]} 78. Kc5 {[%emt 0:00:11]} g5 {[%emt 0:00:24]} 79. Kxb5 {[%emt 0:00:12]} Nd5 {[%emt 0:00:11]} 80. Bf8 {[%emt 0:00:49]} h5 {[%emt 0:00:07][%cal Bh6h5,Bh5h4,Bh4h3][%mdl 32]} 81. Kc4 {[%emt 0:00:05]} Ke4 {[%emt 0:00:20]} 82. Bc5 {[%emt 0:00:43]} h4 {[%emt 0:01:20]} 83. Bf2 {[%emt 0:00:20]} h3 {[%emt 0:00:30]} 84. Bg1 {[%emt 0:00:16] [#]} Nxb4 $1 {[%emt 0:00:09][%mdl 512]} 85. Kxb4 {[%emt 0:00:06]} (85. Kc5 Nd3+) 85... g4 {[%emt 0:00:06] Never resign too early!  Weighted Error Value: White=0.09 (flawless) /Black=0.11 (very precise)} 0-1

[Event "German Bundesliga 2021-22"]
[Site "Germany"]
[Date "2022.04.09"]
[Round "3.3"]
[White "Edouard, Romain"]
[Black "Nestorovic, Nikola"]
[Result "0-1"]
[ECO "A28"]
[WhiteElo "2591"]
[BlackElo "2456"]
[Annotator "RC"]
[PlyCount "138"]
[EventDate "2022.03.05"]
[EventType "team-tourn"]
[EventCountry "GER"]
[SourceTitle "playchess.com"]
[Source "ChessBase"]
[SourceQuality "1"]
[TimeControl "40/5400+30:1800+30"]

1. c4 {[%emt 0:00:00]} e5 {[%emt 0:00:00]} 2. Nc3 {[%emt 0:00:00]} Nc6 {[%emt 0:00:00]} 3. Nf3 {[%emt 0:00:00]} Nf6 {[%emt 0:00:00]} 4. e3 {[%emt 0:00:00]} g6 {[%emt 0:00:00]} 5. d4 {[%emt 0:00:00]} d6 {[%emt 0:00:00]} 6. dxe5 {[%emt 0:00:00]} Nxe5 {[%emt 0:00:00]} 7. Nxe5 {[%emt 0:00:02]} dxe5 {[%emt 0:00:00]} 8. Qxd8+ {[%emt 0:00:03]} Kxd8 {[%emt 0:00:00]} 9. b3 {[%emt 0:00:03]} Bd6 {[%emt 0:20:14]} 10. Bb2 {[%emt 0:00:23]} Bd7 {[%emt 0:08:33]} 11. O-O-O {[%emt 0:00:35]} Kc8 {[%emt 0:04:32]} 12. Be2 {[%emt 0:02:02]} Re8 {[%emt 0:03:21]} 13. h3 {[%emt 0:04:40]} Bc6 {[%emt 0:02:48]} 14. Bf3 {[%emt 0:01:18]} Bxf3 {[%emt 0:01:20]} 15. gxf3 {[%emt 0:00:02]} a6 {[%emt 0:04:47]} 16. h4 {[%emt 0:03:02]} b6 {[%emt 0:02:08]} 17. Ne4 {[%emt 0:01:33]} Nxe4 {[%emt 0:00:12]} 18. fxe4 {[%emt 0:00:02]} h5 {[%emt 0:02:47]} 19. Rh3 {[%emt 0:00:32]} Kd7 {[%emt 0:05:39]} 20. f4 {[%emt 0:03:57]} Kc6 {[%emt 0:01:28]} 21. f5 {[%emt 0:00:59]} gxf5 {[%emt 0:01:32]} 22. exf5 {[%emt 0:00:03]} Rg8 {[%emt 0:00:25]} 23. f6 {[%emt 0:00:31]} Rg4 {[%emt 0:04:26]} 24. Rhh1 {[%emt 0:02:37]} b5 {[%emt 0:05:41]} 25. cxb5+ {[%emt 0:00:13]} axb5 {[%emt 0:00:05]} 26. Kb1 {[%emt 0:00:05]} b4 {[%emt 0:03:14]} 27. Rdf1 {[%emt 0:02:17]} Kd5 {[%emt 0:01:28]} 28. Rf5 {[%emt 0:00:16]} Rh8 {[%emt 0:00:06]} 29. Bc1 {[%emt 0:14:52]} Ke6 {[%emt 0:08:24]} 30. e4 {[%emt 0:00:06]} Rxe4 {[%emt 0:00:21]} 31. Rf2 {[%emt 0:00:02]} Rg4 {[%emt 0:04:26]} 32. Bg5 {[%emt 0:00:06]} Ra8 {[%emt 0:01:17]} 33. Re2 {[%emt 0:01:15]} Ra5 {[%emt 0:01:07]} 34. Rc1 {[%emt 0:03:26]} Rc5 {[%emt 0:02:19]} 35. Rd1 {[%emt 0:02:46]} Rc3 {[%emt 0:01:36]} 36. Kb2 {[%emt 0:02:03]} Rcg3 {[%emt 0:01:25]} 37. Rdd2 {[%emt 0:01:05]} Rf3 {[%emt 0:03:39]} 38. Rc2 {[%emt 0:00:48]} Kd5 {[%emt 0:02:35]} 39. Red2+ {[%emt 0:00:33]} Rd4 {[%emt 0:00:46]} 40. Re2 {[%emt 0:01:52]} Rf1 {[%emt 0:03:55]} 41. Rc1 {[%emt 0:31:18]} Rf3 {[%emt 0:32:33]} 42. Rg1 {[%emt 0:01:33]} e4 {[%emt 0:00:00]} 43. Kb1 {[%emt 0:00:00]} Be5 {[%emt 0:00:00]} 44. Kc2 {[%emt 0:00:00]} Bg3 {[%emt 0:00:00]} 45. Bd2 {[%emt 0:00:00]} Rf2 {[%emt 0:00:00]} 46. Rg2 {[%emt 0:00:00]} Rxe2 {[%emt 0:00:00]} 47. Rxe2 {[%emt 0:00:00]} Bxh4 {[%emt 0:00:00]} 48. Rh2 {[%emt 0:00:00]} Bxf6 {[%emt 0:00:00]} 49. Rxh5+ {[%emt 0:00:00]} Ke6 {[%emt 0:00:00]} 50. Rh6 {[%emt 0:00:00]} Kf5 {[%emt 0:00:00]} 51. Rh5+ {[%emt 0:00:00]} Kg6 {[%emt 0:00:00]} 52. Rh6+ {[%emt 0:00:00]} Kg7 {[%emt 0:00:00]} 53. Rh5 {[%emt 0:00:00]} Be7 {[%emt 0:00:00]} 54. Bc1 {[%emt 0:00:00]} Kg6 {[%emt 0:00:00]} 55. Rh6+ {[%emt 0:00:00]} Kf5 {[%emt 0:00:00]} 56. Rh5+ {[%emt 0:00:00]} Ke6 {[%emt 0:00:00]} 57. Rh6+ {[%emt 0:00:00]} f6 {[%emt 0:00:00]} 58. Rh4 {[%emt 0:00:00]} f5 {[%emt 0:00:00]} 59. Rh6+ {[%emt 0:00:00]} Kd7 {[%emt 0:00:00]} 60. Rh7 {[%emt 0:00:00]} Ke6 {[%emt 0:00:39]} 61. Rh6+ {[%emt 0:00:00]} Ke5 {[%emt 0:01:28]} 62. Bb2 {[%emt 0:00:00]} c5 {[%emt 0:00:01]} 63. Ra6 {[%emt 0:00:00]} f4 {[%emt 0:01:05]} 64. a4 {[%emt 0:00:00]} bxa3 {[%emt 0:06:07]} 65. Rxa3 {[%emt 0:00:00]} f3 {[%emt 0:00:31]} 66. Ra7 {[%emt 0:00:00]} Ke6 {[%emt 0:00:51]} 67. Bxd4 {[%emt 0:00:00]} cxd4 {[%emt 0:00:03]} 68. Ra5 {[%emt 0:00:00]} d3+ {[%emt 0:01:16]} 69. Kc3 {[%emt 0:00:00]} f2 {[%emt 0:00:09]} 0-1

[Event "German Bundesliga 2021-22"]
[Site "Germany"]
[Date "2022.04.09"]
[Round "3.4"]
[White "Rozentalis, Eduardas"]
[Black "Nyback, Tomi"]
[Result "1/2-1/2"]
[ECO "C54"]
[WhiteElo "2542"]
[BlackElo "2573"]
[Annotator "TA"]
[PlyCount "150"]
[EventDate "2022.03.05"]
[EventType "team-tourn"]
[EventCountry "GER"]
[SourceTitle "playchess.com"]
[Source "ChessBase"]
[SourceQuality "1"]
[TimeControl "40/5400+30:1800+30"]

{[%evp 42,150,-8,-14,14,10,18,16,22,0,34,0,0,0,0,0,0,0,12,8,16,8,13,12,13,-30,-23,-19,0,-30,0,-21,-15,-20,-16,-20,-21,-27,-24,-25,-21,-29,17,13,30,0,0,0,0,-47,-39,-54,-49,-41,0,-75,-11,-11,0,0,0,-3,-14,-39,-35,-49,-49,-51,-41,-45,-37,-38,0,0,0,-35,-35,-35,-35,-36,-36,-38,-8,-8,-1,-8,-8,-8,-8,-8,-8,-8,0,0,0,0,0,0,0,0,0,0,0,0,0,0,0,0,0,0,0]} 1. e4 {[%emt 0:00:00]} e5 {[%emt 0:00:00]} 2. Nf3 {[%emt 0:00:00]} Nc6 {[%emt 0:00:00]} 3. Bc4 {[%emt 0:00:00]} Bc5 {[%emt 0:00:00]} 4. c3 {[%emt 0:00:00]} Nf6 {[%emt 0:00:00]} 5. d3 {[%emt 0:00:00]} d6 {[%emt 0:00:00]} 6. O-O {[%emt 0:00:00]} h6 {[%emt 0:00:00]} 7. Re1 {[%emt 0:00:00]} O-O {[%emt 0:00:00]} 8. Nbd2 {[%emt 0:00:00]} Ng4 {[%emt 0:28:45]} 9. Re2 {[%emt 0:00:00]} Kh8 {[%emt 0:11:30]} 10. Nb3 {[%emt 0:19:09]} Bb6 {[%emt 0:01:17]} 11. h3 {[%emt 0:20:51]} Nf6 {[%emt 0:10:07]} 12. a4 {[%emt 0:00:53]} a5 {[%emt 0:02:52]} 13. Bd2 {[%emt 0:02:39]} Nh5 {[%emt 0:03:53]} 14. d4 {[%emt 0:04:34]} Qf6 {[%emt 0:09:14]} 15. Re1 {[%emt 0:05:42]} Nf4 {[%emt 0:01:06]} 16. Be3 {[%emt 0:01:53]} g5 {[%emt 0:02:22]} 17. Nh2 {[%emt 0:04:22]} Qg6 {[%emt 0:02:24]} 18. Bf1 {[%emt 0:05:13]} f5 {[%emt 0:05:29]} 19. d5 {[%emt 0:10:34]} Ne7 {[%emt 0:01:48]} 20. Bxb6 {[%emt 0:00:53]} cxb6 {[%emt 0:00:06]} 21. exf5 {[%emt 0:02:35]} Bxf5 {[%emt 0:02:26]} 22. Nd4 $1 {[%emt 0:00:22]} Nfxd5 {[%emt 0:04:31]} ({Don't take} 22... Nexd5 23. Nxf5 Rxf5 24. g3 $14) 23. Nxf5 {[%emt 0:02:42]} Qxf5 {[%emt 0:00:09]} ({Don't play} 23... Rxf5 24. Bd3 Nf4 25. Bxf5 Nxf5 26. g3 $16) 24. Qd2 {[%emt 0:00:49]} Rad8 {[%emt 0:00:50]} 25. Rad1 {[%emt 0:01:30]} Nf6 {[%emt 0:03:29]} 26. Qe3 {[%emt 0:03:03]} (26. Bd3 $5 {[%cal Rd3f5]} Qf4 27. Qxf4 gxf4 28. Nf3 $11) 26... Ned5 {[%emt 0:01:47]} 27. Qd2 {[%emt 0:00:09]} Nf4 {[%emt 0:01:38]} 28. Qe3 {[%emt 0:00:40]} N4d5 {[%emt 0:05:35]} 29. Qd2 {[%emt 0:00:08]} Kg7 {[%emt 0:01:42]} 30. g3 {[%emt 0:01:46]} Ne7 {[%emt 0:01:03]} 31. Bg2 {[%emt 0:03:04]} Qd7 {[%emt 0:00:20]} 32. Qc2 {[%emt 0:01:31]} Qc7 {[%emt 0:00:16]} 33. Nf1 {[%emt 0:00:33]} d5 {[%emt 0:00:45]} 34. Ne3 {[%emt 0:00:22]} e4 {[%emt 0:00:20]} 35. Rd2 {[%emt 0:00:45]} h5 {[%emt 0:01:04]} 36. Red1 {[%emt 0:01:43]} Qc5 {[%emt 0:00:22]} 37. Qb3 {[%emt 0:02:52]} Rd6 {[%emt 0:01:07]} 38. Rd4 {[%emt 0:01:16]} Kh8 {[%emt 0:00:25]} 39. Qb5 {[%emt 0:06:04]} Nc6 {[%emt 0:00:30]} 40. R4d2 {[%emt 0:00:11]} Ne5 {[%emt 0:00:40]} 41. Qe2 {[%emt 0:00:00]} Nd3 {[%emt 0:08:20]} (41... Rfd8 $142) 42. Nf5 $11 {[%emt 0:00:00]} Rdd8 {[%emt 0:00:23]} 43. Nd4 {[%emt 0:00:00]} (43. Rxd3 $5 exd3 44. Rxd3 $11) 43... Rde8 {[%emt 0:00:50]} 44. Qe3 {[%emt 0:00:00]} Nh7 {[%emt 0:00:58]} 45. Nf5 {[%emt 0:08:02]} (45. Rxd3 $11 exd3 46. Qxd3) 45... Rxf5 $15 {[%emt 0:10:21]} 46. Rxd3 {[%emt 0:00:16]} Nf6 {[%emt 0:00:28]} ({But not} 46... exd3 47. Qxe8+ Kg7 48. Qe1 $16) 47. Rd4 {[%emt 0:01:38]} Kg7 {[%emt 0:01:39]} 48. R1d2 {[%emt 0:04:11]} (48. Rc1 $11 {remains equal.}) 48... Re7 {[%emt 0:01:00]} (48... b5 $17) 49. c4 $11 {[%emt 0:01:52]} dxc4 {[%emt 0:01:10]} 50. Qc3 {[%emt 0:00:04]} e3 {[%emt 0:04:13]} 51. fxe3 {[%emt 0:00:03]} Rfe5 {[%emt 0:00:46]} 52. Rxc4 {[%emt 0:04:59]} Qxe3+ {[%emt 0:00:26]} 53. Qxe3 {[%emt 0:03:37]} Rxe3 {[%emt 0:00:06]} 54. Kh2 {[%emt 0:00:11]} Ne4 {[%emt 0:03:32]} 55. Rd5 $1 {[%emt 0:03:26]} Re2 {[%emt 0:01:06]} 56. Kg1 {[%emt 0:00:22]} Re1+ {[%emt 0:01:57]} 57. Kh2 {[%emt 0:00:09]} Re2 {[%emt 0:00:16]} 58. Kg1 {[%emt 0:00:02]} Kf6 {[%emt 0:01:11]} 59. Rb5 {[%emt 0:02:24]} Nxg3 {[%emt 0:00:35]} 60. Rxb6+ {[%emt 0:00:15]} R7e6 {[%emt 0:00:31]} 61. Rxe6+ {[%emt 0:01:08]} Rxe6 {[%emt 0:00:21]} 62. Bxb7 {[%emt 0:00:46]} Rb6 {[%emt 0:00:43]} 63. Rc6+ {[%emt 0:00:54]} Rxc6 {[%emt 0:00:13]} 64. Bxc6 {[%emt 0:00:04]} Ke5 {[%emt 0:00:24]} 65. Kg2 {[%emt 0:03:27]} Nf5 {[%emt 0:00:23]} 66. Be8 {[%emt 0:00:15]} g4 {[%emt 0:01:06]} 67. Bxh5 {[%emt 0:01:27]} gxh3+ {[%emt 0:00:05]} 68. Kxh3 {[%emt 0:00:08]} Kd4 {[%emt 0:00:28]} 69. Kg2 {[%emt 0:00:45]} Ne3+ {[%emt 0:00:27]} 70. Kf2 {[%emt 0:00:47]} Nc4 {[%emt 0:00:06]} 71. b3 {[%emt 0:00:17]} Nd2 {[%emt 0:00:11]} 72. Bf7 {[%emt 0:00:10]} Kc3 {[%emt 0:00:06]} 73. Ke2 {[%emt 0:00:06]} Nxb3 {[%emt 0:00:05]} 74. Bxb3 {[%emt 0:00:07]} Kxb3 {[%emt 0:00:06]} 75. Kd2 {[%emt 0:00:08]} Kxa4 {[%emt 0:00:14]} 1/2-1/2